fUSD/lending_fUSD_20250620
["ID","MTS","AMOUNT","RATE_DAILY","PERIOD"]
[366729726,1750421470991,-490.0,0.00026013,4]
[366729727,1750421471001,-650.52,0.00026013,4]
[366729728,1750421471012,-490.0,0.00026013,4]
[366729729,1750421471021,-206.77960578,0.00026013,4]
[366729730,1750421471033,-490.0,0.00026013,4]
[366729731,1750421471050,-490.0,0.00026013,4]
[366729732,1750421471060,-490.0,0.00026013,4]
[366729733,1750421471070,-648.13,0.00026013,4]
[366729734,1750421471079,-490.0,0.00026013,4]
[366729735,1750421471088,-490.0,0.00026013,4]
[366729736,1750421471097,-490.0,0.00026013,4]
[366729737,1750421471106,-490.0,0.00026013,4]
[366729738,1750421471116,-490.0,0.00026013,4]
[366729739,1750421471125,-490.0,0.00026013,4]
[366729740,1750421471135,-490.0,0.00026013,4]
[366729741,1750421471145,-490.0,0.00026013,4]
[366729742,1750421471154,-340.37747265,0.00026013,4]
[366729743,1750421471163,-490.0,0.00026013,4]
[366729744,1750421471172,-490.0,0.00026013,4]
[366729745,1750421471181,-874.27,0.00026013,4]
[366729746,1750421471191,-463.81,0.00026013,4]
[366729747,1750421471200,-631.32,0.00026013,4]
[366729748,1750421471209,-490.0,0.00026013,4]
[366729749,1750421471218,-1995.75,0.00026013,4]
[366729750,1750421471227,-490.0,0.00026013,4]
[366729751,1750421471236,-490.0,0.00026013,4]
[366729752,1750421471246,-559.86,0.00026013,4]
[366729753,1750421471257,-490.0,0.00026013,4]
[366729754,1750421471267,-512.1,0.00026013,4]
[366729755,1750421471275,-490.0,0.00026013,4]
[366729756,1750421471286,-151.0,0.00026013,7]
[366729757,1750421471296,-490.0,0.00026013,4]
[366729758,1750421471306,-513.76986382,0.00026013,4]
[366729759,1750421471315,-151.0,0.00026013,7]
[366729760,1750421471324,-490.0,0.00026013,4]
[366729761,1750421471334,-490.0,0.00026013,4]
[366729762,1750421471343,-490.0,0.00026013,4]
[366729763,1750421471352,-490.0,0.00026013,4]
[366729764,1750421471361,-490.0,0.00026013,4]
[366729765,1750421471371,-151.0,0.00026013,7]
[366729766,1750421471380,-490.0,0.00026013,4]
[366729767,1750421471390,-490.0,0.00026013,4]
[366729768,1750421471399,-490.0,0.00026013,4]
[366729769,1750421471408,-1332.32,0.00026013,4]
[366729770,1750421471417,-490.0,0.00026013,4]
[366729771,1750421471426,-151.0,0.00026013,7]
[366729772,1750421471435,-491.69747001,0.00026013,4]
[366729773,1750421471445,-490.0,0.00026013,4]
[366729774,1750421471454,-490.0,0.00026013,4]
[366729775,1750421471463,-218.79,0.00026013,4]
[366729776,1750421471473,-490.0,0.00026013,4]
[366729777,1750421471483,-490.0,0.00026013,4]
[366729778,1750421471493,-490.0,0.00026013,4]
[366729779,1750421471502,-490.0,0.00026013,4]
[366729780,1750421471512,-490.0,0.00026013,4]
[366729781,1750421471522,-502.24649946,0.00026013,4]
[366729782,1750421471532,-490.0,0.00026013,4]
[366729783,1750421471541,-410.72,0.00026013,4]
[366729784,1750421471550,-490.0,0.00026013,4]
[366729785,1750421471560,-490.0,0.00026013,4]
[366729786,1750421471569,-490.0,0.00026013,4]
[366729787,1750421471578,-490.0,0.00026013,4]
[366729788,1750421471588,-490.0,0.00026013,4]
[366729789,1750421471597,-490.0,0.00026013,4]
[366729790,1750421471606,-490.0,0.00026013,4]
[366729791,1750421471615,-490.0,0.00026013,4]
[366729792,1750421471624,-490.63,0.00026013,4]
[366729793,1750421471633,-490.0,0.00026013,4]
[366729794,1750421471642,-490.0,0.00026013,4]
[366729795,1750421471651,-270.60830041,0.00026013,4]
[366729796,1750421471660,-151.0,0.00026013,7]
[366729797,1750421471669,-490.22,0.00026013,4]
[366729798,1750421471679,-490.0,0.00026013,4]
[366729799,1750421471688,-490.0,0.00026013,4]
[366729800,1750421471697,-336.6,0.00026013,4]
[366729801,1750421471706,-490.0,0.00026013,4]
[366729802,1750421471719,-490.0,0.00026013,4]
[366729803,1750421471728,-490.0,0.00026013,4]
[366729804,1750421471738,-490.0,0.00026013,4]
[366729805,1750421471749,-490.0,0.00026013,4]
[366729806,1750421471758,-599.42,0.00026013,4]
[366729807,1750421471768,-490.0,0.00026013,4]
[366729808,1750421471779,-289.35,0.00026013,4]
[366729809,1750421471789,-490.0,0.00026013,4]
[366729810,1750421471798,-1001.49,0.00026013,4]
[366729811,1750421471808,-300.29,0.00026013,4]
[366729812,1750421471817,-490.0,0.00026013,4]
[366729813,1750421471826,-490.0,0.00026013,4]
[366729814,1750421471836,-490.0,0.00026013,4]
[366729815,1750421471845,-490.0,0.00026013,4]
[366729816,1750421471855,-490.0,0.00026013,4]
[366729817,1750421471864,-960.43,0.00026013,4]
[366729818,1750421471873,-490.0,0.00026013,4]
[366729819,1750421471882,-490.0,0.00026013,4]
[366729820,1750421471892,-490.0,0.00026013,4]
[366729821,1750421471901,-490.0,0.00026013,4]
[366729822,1750421471911,-490.0,0.00026013,4]
[366729823,1750421471920,-169.33,0.00026013,4]
[366729824,1750421471931,-1116.55,0.00026013,4]
[366729825,1750421471940,-4956.209933,0.00026013,7]
[366729826,1750421471949,-129.71143636,0.00026013,4]
[366729827,1750421471967,-360.28856364,0.00026013,4]
[366729828,1750421471977,-490.0,0.00026013,4]
[366729829,1750421471986,-4956.209933,0.00026013,7]
[366729830,1750421471996,-490.0,0.00026013,4]
[366729831,1750421472005,-490.0,0.00026013,4]
[366729832,1750421472014,-490.0,0.00026013,4]
[366729833,1750421472023,-490.0,0.00026013,4]
[366729834,1750421472032,-490.0,0.00026013,4]
[366729835,1750421472041,-490.0,0.00026013,4]
[366729836,1750421472051,-490.0,0.00026013,4]
[366729837,1750421472060,-490.0,0.00026013,4]
[366729838,1750421472069,-609.23,0.00026013,4]
[366729839,1750421472078,-490.0,0.00026013,4]
[366729840,1750421472087,-490.0,0.00026013,4]
[366729841,1750421472096,-645.01193175,0.00026013,4]
[366729842,1750421472108,-133.21806825,0.00026013,4]
[366729843,1750421472117,-490.0,0.00026013,4]
[366729844,1750421472127,-490.0,0.00026013,4]
[366729845,1750421472137,-490.0,0.00026013,4]
[366729846,1750421472146,-490.0,0.00026013,4]
[366729847,1750421472156,-490.0,0.00026013,4]
[366729848,1750421472165,-107.3528318,0.00026013,7]
[366729849,1750421472181,-245.3113282,0.00026013,7]
[366729850,1750421472191,-493.18,0.00026013,4]
[366729851,1750421472200,-490.0,0.00026013,4]
[366729852,1750421472210,-352.66416,0.00026013,7]
[366729853,1750421472220,-281.09429394,0.00026013,4]
[366729854,1750421472230,-585.64,0.00026013,4]
[366729855,1750421472239,-490.0,0.00026013,4]
[366729856,1750421472249,-222.20137579,0.00026013,4]
[366729857,1750421472260,-267.79862421,0.00026013,4]
[366729858,1750421472270,-490.0,0.00026013,4]
[366729859,1750421472279,-490.0,0.00026013,4]
[366729860,1750421472289,-490.0,0.00026013,4]
[366729861,1750421472298,-114.70519385,0.00026013,4]
[366729862,1750421472310,-375.29480615,0.00026013,4]
[366729863,1750421472320,-490.0,0.00026013,4]
[366729864,1750421472329,-490.0,0.00026013,4]
[366729865,1750421472338,-755.65,0.00026013,4]
[366729866,1750421472348,-490.0,0.00026013,4]
[366729867,1750421472357,-490.0,0.00026013,4]
[366729868,1750421472367,-493.0722488,0.00026013,4]
[366729869,1750421472378,-494.91438839,0.00026013,4]
[366729870,1750421472387,-490.0,0.00026013,4]
[366729871,1750421472397,-490.0,0.00026013,4]
[366729872,1750421472406,-269.155868,0.00026013,7]
[366729873,1750421472416,-490.0,0.00026013,4]
[366729874,1750421472425,-490.0,0.00026013,4]
[366729875,1750421472435,-494.16349938,0.00026013,4]
[366729876,1750421472445,-490.0,0.00026013,4]
[366729877,1750421472454,-490.0,0.00026013,4]
[366729878,1750421472464,-510.65193408,0.00026013,4]
[366729879,1750421472473,-319.0,0.00026013,4]
[366729880,1750421472483,-490.0,0.00026013,4]
[366729881,1750421472493,-550.33,0.00026013,4]
[366729882,1750421472502,-490.0,0.00026013,4]
[366729883,1750421472512,-151.0,0.00026013,7]
[366729884,1750421472521,-334.9812552,0.00026013,4]
[366729885,1750421472534,-155.0187448,0.00026013,4]
[366729886,1750421472543,-151.0,0.00026013,7]
[366729887,1750421472553,-493.50759551,0.00026013,4]
[366729888,1750421472562,-1152.71967657,0.00026013,4]
[366729889,1750421472574,-314.70032343,0.00026013,4]
[366729890,1750421472583,-490.0,0.00026013,4]
[366729891,1750421472593,-490.0,0.00026013,4]
[366729892,1750421472603,-490.0,0.00026013,4]
[366729893,1750421472613,-490.0,0.00026013,4]
[366729894,1750421472623,-403.53,0.00026013,4]
[366729895,1750421472633,-490.0,0.00026013,4]
[366729896,1750421472642,-490.0,0.00026013,4]
[366729897,1750421472652,-178.372932,0.00026013,7]
[366729898,1750421472661,-214.87,0.00026013,4]
[366729899,1750421472671,-550.74,0.00026013,4]
[366729900,1750421472681,-178.372932,0.00026013,7]
[366729901,1750421472691,-151.0,0.00026013,7]
[366729902,1750421472701,-174.43,0.00026013,4]
[366729903,1750421472713,-1035.82,0.00026013,4]
[366729904,1750421472724,-151.0,0.00026013,7]
[366729905,1750421472734,-377.32,0.00026013,4]
[366729906,1750421472743,-169.169003,0.00026013,7]
[366729907,1750421472757,-169.169003,0.00026013,7]
[366729908,1750421472772,-246.45,0.00026013,4]
[366729909,1750421472782,-665.54,0.00026013,4]
[366729910,1750421472795,-291.48804556,0.00026013,10]
[366729911,1750421472805,-490.0,0.00026013,4]
[366729912,1750421472814,-490.0,0.00026013,4]
[366729913,1750421472824,-490.0,0.00026013,4]
[366729914,1750421472833,-490.0,0.00026013,4]
[366729915,1750421472843,-917.57,0.00026013,4]
[366729916,1750421472852,-2859.25,0.00026013,4]
[366729917,1750421472862,-490.0,0.00026013,4]
[366729918,1750421472871,-490.0,0.00026013,4]
[366729919,1750421472882,-362.360001,0.00026013,4]
[366729920,1750421472891,-490.0,0.00026013,4]
[366729921,1750421472902,-566.41,0.00026013,4]
[366729922,1750421472911,-184.99,0.00026013,4]
[366729923,1750421472920,-490.0,0.00026013,4]
[366729924,1750421472930,-151.0,0.00026013,7]
[366729925,1750421472940,-561.28,0.00026013,4]
[366729926,1750421472949,-490.0,0.00026013,4]
[366729927,1750421472959,-490.0,0.00026013,4]
[366729928,1750421472969,-490.0,0.00026013,4]
[366729929,1750421472979,-490.0,0.00026013,4]
[366729930,1750421472989,-219.103365,0.00026013,7]
[366729931,1750421472999,-490.0,0.00026013,4]
[366729932,1750421473009,-490.0,0.00026013,4]
[366729933,1750421473019,-219.103365,0.00026013,7]
[366729934,1750421473029,-490.0,0.00026013,4]
[366729935,1750421473039,-490.0,0.00026013,4]
[366729936,1750421473049,-490.0,0.00026013,4]
[366729937,1750421473059,-904.5,0.00026013,4]
[366729938,1750421473069,-490.0,0.00026013,4]
[366729939,1750421473079,-490.0,0.00026013,4]
[366729940,1750421473089,-490.0,0.00026013,4]
[366729941,1750421473099,-152.87,0.00026013,4]
[366729942,1750421473109,-490.0,0.00026013,4]
[366729943,1750421473119,-833.6,0.00026013,4]
[366729944,1750421473129,-151.0,0.00026013,7]
[366729945,1750421473139,-1049.7,0.00026013,4]
[366729946,1750421473150,-151.0,0.00026013,7]
[366729947,1750421473160,-490.0,0.00026013,4]
[366729948,1750421473172,-490.0,0.00026013,4]
[366729949,1750421473182,-461.283538,0.00026013,7]
[366729950,1750421473192,-341.35,0.00026013,4]
[366729951,1750421473202,-461.283538,0.00026013,7]
[366729952,1750421473212,-490.0,0.00026013,4]
[366729953,1750421473222,-490.0,0.00026013,4]
[366729954,1750421473232,-490.0,0.00026013,4]
[366729955,1750421473242,-151.0,0.00026013,7]
[366729956,1750421473252,-401.794605,0.00026013,7]
[366729957,1750421473262,-490.0,0.00026013,4]
[366729958,1750421473273,-742.59,0.00026013,4]
[366729959,1750421473283,-381.89033912,0.00026013,4]
[366729960,1750421473293,-401.794605,0.00026013,7]
[366729961,1750421473303,-774.77,0.00026013,4]
[366729962,1750421473313,-490.0,0.00026013,4]
[366729963,1750421473323,-490.0,0.00026013,4]
[366729964,1750421473334,-490.0,0.00026013,4]
[366729965,1750421473343,-7966.95,0.00026013,4]
[366729966,1750421473354,-490.0,0.00026013,4]
[366729967,1750421473364,-490.0,0.00026013,4]
[366729968,1750421473374,-490.0,0.00026013,4]
[366729969,1750421473384,-234.01,0.00026013,4]
[366729970,1750421473394,-490.0,0.00026013,4]
[366729971,1750421473403,-278.58,0.00026013,4]
[366729972,1750421473413,-171.19,0.00026013,4]
[366729973,1750421473423,-1034.49,0.00026013,4]
[366729974,1750421473434,-490.0,0.00026013,4]
[366729975,1750421473444,-490.0,0.00026013,4]
[366729976,1750421473455,-490.0,0.00026013,4]
[366729977,1750421473469,-490.0,0.00026013,4]
[366729978,1750421473482,-490.0,0.00026013,4]
[366729979,1750421473493,-490.0,0.00026013,4]
[366729980,1750421473503,-225.07,0.00026013,4]
[366729981,1750421473514,-669.88,0.00026013,4]
[366729982,1750421473524,-524.12927803,0.00026013,4]
[366729983,1750421473534,-490.0,0.00026013,4]
[366729984,1750421473545,-490.0,0.00026013,4]
[366729985,1750421473555,-490.0,0.00026013,4]
[366729986,1750421473565,-490.0,0.00026013,4]
[366729987,1750421473575,-572.5,0.00026013,4]
[366729988,1750421473585,-510.89,0.00026013,4]
[366729989,1750421473596,-3318.24,0.00026013,4]
[366729990,1750421473606,-490.0,0.00026013,4]
[366729991,1750421473617,-490.0,0.00026013,4]
[366729992,1750421473706,-490.0,0.00026013,4]
[366729993,1750421473721,-1373.28,0.00026013,4]
[366729994,1750421473732,-490.0,0.00026013,4]
[366729995,1750421473743,-666.78,0.00026013,4]
[366729996,1750421473754,-490.0,0.00026013,4]
[366729997,1750421473764,-1204.75,0.00026013,4]
[366729998,1750421473774,-490.0,0.00026013,4]
[366729999,1750421473784,-490.0,0.00026013,4]
[366730000,1750421473799,-490.0,0.00026013,4]
[366730001,1750421473809,-2246.94,0.00026013,4]
[366730002,1750421473819,-490.0,0.00026013,4]
[366730003,1750421473829,-1307.27,0.00026013,4]
[366730004,1750421473839,-490.0,0.00026014,4]
[366730005,1750421473848,-490.0,0.00026014,4]
[366730006,1750421473858,-490.0,0.00026014,4]
[366730007,1750421473868,-490.0,0.00026014,4]
[366730008,1750421473878,-151.0,0.00026014,7]
[366730009,1750421473888,-1224.304931,0.00026014,7]
[366730010,1750421473898,-1224.304931,0.00026014,7]
[366730011,1750421473908,-500.0,0.00026014,4]
[366730012,1750421473918,-422.368227,0.00026014,7]
[366730013,1750421473928,-422.368227,0.00026014,7]
[366730014,1750421473938,-151.0,0.00026014,7]
[366730015,1750421473949,-151.0,0.00026014,7]
[366730017,1750421473961,-151.0,0.00026014,7]
[366730018,1750421473972,-490.0,0.00026014,4]
[366730019,1750421473982,-490.0,0.00026014,4]
[366730020,1750421473992,-490.0,0.00026014,4]
[366730021,1750421474002,-490.0,0.00026014,4]
[366730022,1750421474012,-254.180629,0.00026014,7]
[366730023,1750421474022,-254.180629,0.00026014,7]
[366730024,1750421474032,-665.17,0.00026014,4]
[366730025,1750421474042,-490.0,0.00026014,4]
[366730026,1750421474052,-151.0,0.00026014,7]
[366730027,1750421474062,-249.856089,0.00026014,7]
[366730028,1750421474073,-151.0,0.00026014,7]
[366730029,1750421474083,-151.0,0.00026014,7]
[366730030,1750421474092,-151.0,0.00026014,7]
[366730031,1750421474102,-151.0,0.00026014,7]
[366730032,1750421474112,-151.0,0.00026015,7]
[366730033,1750421474122,-151.0,0.00026015,7]
[366730034,1750421474132,-151.0,0.00026015,7]
[366730035,1750421474145,-317.398231,0.00026015,7]
[366730036,1750421474155,-157.786799,0.00026015,7]
[366730037,1750421474165,-157.786799,0.00026015,7]
[366730038,1750421474175,-151.0,0.00026015,7]
[366730039,1750421474184,-151.0,0.00026015,7]
[366730040,1750421474195,-151.0,0.00026015,7]
[366730041,1750421474205,-490.0,0.00026015,4]
[366730042,1750421474215,-151.0,0.00026015,7]
[366730043,1750421474225,-151.0,0.00026015,7]
[366730044,1750421474235,-151.0,0.00026015,7]
[366730045,1750421474245,-151.0,0.00026015,7]
[366730046,1750421474255,-151.0,0.00026015,7]
[366730047,1750421474264,-151.0,0.00026015,7]
[366730048,1750421474274,-490.0,0.00026015,4]
[366730049,1750421474284,-490.0,0.00026015,4]
[366730050,1750421474294,-151.0,0.00026015,7]
[366730051,1750421474303,-151.0,0.00026015,7]
[366730052,1750421474313,-490.0,0.00026015,4]
[366730053,1750421474323,-490.0,0.00026015,4]
[366730054,1750421474333,-490.0,0.00026015,4]
[366730055,1750421474343,-151.0,0.00026015,7]
[366730056,1750421474352,-416.314826,0.00026015,7]
[366730057,1750421474362,-490.0,0.00026015,4]
[366730058,1750421474371,-151.0,0.00026015,7]
[366730059,1750421474381,-416.314826,0.00026015,7]
[366730060,1750421474391,-490.0,0.00026015,4]
[366730061,1750421474401,-589.23,0.00026015,4]
[366730062,1750421474410,-490.0,0.00026015,4]
[366730063,1750421474420,-490.0,0.00026015,4]
[366730064,1750421474430,-194.767111,0.00026015,7]
[366730065,1750421474440,-194.767111,0.00026015,7]
[366730066,1750421474451,-490.0,0.00026015,4]
[366730067,1750421474461,-500.0,0.00026015,4]
[366730068,1750421474470,-445.87,0.00026015,4]
[366730069,1750421474481,-490.0,0.00026015,4]
[366730070,1750421474491,-490.0,0.00026015,4]
[366730071,1750421474501,-490.0,0.00026015,4]
[366730072,1750421474511,-490.0,0.00026015,4]
[366730073,1750421474522,-490.0,0.00026015,4]
[366730074,1750421474532,-151.0,0.00026015,7]
[366730075,1750421474541,-798.44,0.00026015,4]
[366730076,1750421474552,-490.0,0.00026015,4]
[366730077,1750421474562,-848.237675,0.00026015,7]
[366730078,1750421474572,-848.237675,0.00026015,7]
[366730079,1750421474581,-166.76,0.00026015,4]
[366730080,1750421474869,-490.0,0.00026015,4]
[366730081,1750421474880,-229.56728297,0.00026015,4]
[366730082,1750421474890,-490.0,0.00026015,4]
[366730083,1750421474900,-434.68,0.00026015,4]
[366730084,1750421474910,-490.0,0.00026015,4]
[366730085,1750421474920,-490.0,0.00026015,4]
[366730086,1750421474929,-490.0,0.00026015,4]
[366730087,1750421474939,-183.88,0.00026015,4]
[366730088,1750421474949,-490.0,0.00026015,4]
[366730089,1750421474959,-151.0,0.00026015,7]
[366730090,1750421474969,-661.944522,0.00026015,7]
[366730091,1750421474979,-490.0,0.00026015,4]
[366730092,1750421474989,-661.944522,0.00026015,7]
[366730093,1750421474999,-490.0,0.00026015,4]
[366730094,1750421475009,-490.0,0.00026015,4]
[366730095,1750421475019,-400.4132678,0.00026015,4]
[366730096,1750421475030,-490.0,0.00026015,4]
[366730097,1750421475039,-151.0,0.00026015,7]
[366730098,1750421475049,-490.0,0.00026015,4]
[366730099,1750421475059,-490.0,0.00026015,4]
[366730100,1750421475069,-253.89,0.00026015,4]
[366730101,1750421475079,-490.0,0.00026015,4]
[366730102,1750421475089,-490.0,0.00026015,4]
[366730103,1750421475099,-1129.363233,0.00026015,7]
[366730104,1750421475109,-456.37119305,0.00026015,4]
[366730105,1750421475119,-490.0,0.00026015,4]
[366730106,1750421475129,-1224.304931,0.00026015,7]
[366730107,1750421475138,-276.48,0.00026015,4]
[366730108,1750421475148,-1224.304931,0.00026015,7]
[366730109,1750421475159,-377.98,0.00026015,4]
[366730110,1750421475168,-490.0,0.00026015,4]
[366730111,1750421475178,-246.39,0.00026015,4]
[366730112,1750421475188,-527.62,0.00026015,4]
[366730113,1750421475198,-518.68460719,0.00026015,4]
[366730114,1750421475208,-563.1839643,0.00026015,4]
[366730115,1750421475218,-490.44,0.00026015,4]
[366730116,1750421475228,-490.0,0.00026015,4]
[366730117,1750421475239,-647.264905,0.00026015,7]
[366730118,1750421475249,-647.264905,0.00026015,7]
[366730119,1750421475259,-151.0,0.00026015,7]
[366730120,1750421475269,-151.0,0.00026015,7]
[366730121,1750421475279,-490.0,0.00026015,4]
[366730122,1750421475288,-151.0,0.00026015,7]
[366730123,1750421475298,-422.368227,0.00026015,7]
[366730124,1750421475307,-151.0,0.00026015,7]
[366730125,1750421475317,-422.368227,0.00026015,7]
[366730126,1750421475327,-739.74,0.00026015,4]
[366730127,1750421475336,-151.0,0.00026015,7]
[366730128,1750421475346,-151.0,0.00026015,7]
[366730129,1750421475355,-151.0,0.00026015,7]
[366730130,1750421475365,-4956.209933,0.00026015,7]
[366730131,1750421475375,-4956.209933,0.00026015,7]
[366730132,1750421475385,-352.66416,0.00026015,7]
[366730133,1750421475395,-352.66416,0.00026015,7]
[366730134,1750421475406,-151.0,0.00026015,7]
[366730135,1750421475416,-672.663527,0.00026015,7]
[366730136,1750421475426,-672.663527,0.00026015,7]
[366730137,1750421475436,-151.0,0.00026015,7]
[366730138,1750421475446,-254.180629,0.00026015,7]
[366730139,1750421475456,-178.372932,0.00026015,7]
[366730140,1750421475466,-254.180629,0.00026015,7]
[366730141,1750421475476,-178.372932,0.00026015,7]
[366730142,1750421475486,-151.0,0.00026015,7]
[366730143,1750421475496,-151.0,0.00026015,7]
[366730144,1750421475506,-151.0,0.00026015,7]
[366730145,1750421475517,-219.103365,0.00026015,7]
[366730146,1750421475527,-219.103365,0.00026015,7]
[366730147,1750421475537,-151.0,0.00026015,7]
[366730148,1750421475547,-151.0,0.00026015,7]
[366730149,1750421475558,-461.283538,0.00026015,7]
[366730150,1750421475568,-461.283538,0.00026015,7]
[366730151,1750421475578,-151.0,0.00026015,7]
[366730152,1750421475588,-401.794605,0.00026015,7]
[366730153,1750421475597,-401.794605,0.00026015,7]
[366730154,1750421475607,-500.0,0.00026027,2]
[366730155,1750421475616,-500.0,0.00026027,2]
[366730156,1750421475626,-500.0,0.00026027,2]
[366730157,1750421475636,-500.0,0.00026027,2]
[366730158,1750421475646,-188.6767261,0.00026027,2]
[366730159,1750421475655,-151.33294563,0.00026073,2]
[366730160,1750421475665,-1000.0,0.00026157,2]
[366730161,1750421475675,-206.0,0.00026164,7]
[366730162,1750421475685,-324.39159767,0.00026187,2]
[366730163,1750421475695,-200.0,0.000262,2]
[366730164,1750421475704,-163.53361839,0.00026226,2]
[366730165,1750421475718,-938.0497147,0.00026268,3]
[366730166,1750421475727,-938.0497147,0.00026277,3]
[366730167,1750421475737,-194.767111,0.00026278,7]
[366730168,1750421475747,-194.767111,0.00026278,7]
[366730169,1750421475757,-151.0,0.00026278,7]
[366730170,1750421475766,-490.0,0.00026278,4]
[366730171,1750421475775,-490.0,0.00026278,4]
[366730172,1750421475785,-490.0,0.00026278,4]
[366730173,1750421475795,-490.0,0.00026278,4]
[366730174,1750421475805,-490.0,0.00026278,4]
[366730175,1750421475814,-490.0,0.00026278,4]
[366730176,1750421475824,-475.32,0.00026278,4]
[366730177,1750421475834,-1047.29,0.00026278,4]
[366730178,1750421475843,-490.0,0.00026278,4]
[366730179,1750421475852,-173.39,0.00026278,4]
[366730180,1750421475862,-808.0,0.00026278,4]
[366730181,1750421475872,-490.0,0.00026278,4]
[366730182,1750421475882,-507.04,0.00026278,4]
[366730183,1750421475891,-490.0,0.00026278,4]
[366730184,1750421475901,-490.0,0.00026278,4]
[366730185,1750421475909,-490.0,0.00026278,4]
[366730186,1750421475919,-427.37,0.00026278,4]
[366730187,1750421475928,-490.0,0.00026278,4]
[366730188,1750421475938,-2051.07,0.00026278,4]
[366730189,1750421475948,-482.04,0.00026278,4]
[366730190,1750421475958,-490.0,0.00026278,4]
[366730191,1750421475968,-490.0,0.00026278,4]
[366730192,1750421475978,-727.65,0.00026278,4]
[366730193,1750421475988,-490.0,0.00026278,4]
[366730194,1750421475998,-490.0,0.00026278,4]
[366730195,1750421476008,-509.95,0.00026278,4]
[366730196,1750421476018,-260.68,0.00026278,4]
[366730197,1750421476028,-395.1331778,0.00026278,4]
[366730198,1750421476038,-490.0,0.00026278,4]
[366730199,1750421476049,-490.0,0.00026278,4]
[366730200,1750421476059,-169.169003,0.00026278,7]
[366730201,1750421476069,-169.169003,0.00026278,7]
[366730202,1750421476078,-490.0,0.00026278,4]
[366730203,1750421476089,-490.0,0.00026278,4]
[366730204,1750421476099,-490.0,0.00026278,4]
[366730205,1750421476109,-490.0,0.00026278,4]
[366730206,1750421476120,-598.67,0.00026278,4]
[366730207,1750421476130,-490.0,0.00026278,4]
[366730208,1750421476139,-490.0,0.00026278,4]
[366730209,1750421476150,-206.83,0.00026278,4]
[366730210,1750421476160,-490.0,0.00026278,4]
[366730211,1750421476170,-490.0,0.00026278,4]
[366730212,1750421476181,-580.81,0.00026278,4]
[366730213,1750421476191,-490.0,0.00026278,4]
[366730214,1750421476202,-410.31,0.00026278,4]
[366730215,1750421476213,-718.35,0.00026278,4]
[366730216,1750421476223,-1146.27,0.00026278,4]
[366730217,1750421476233,-748.22,0.00026278,4]
[366730218,1750421476244,-490.0,0.00026278,4]
[366730219,1750421476254,-490.0,0.00026278,4]
[366730220,1750421476264,-490.0,0.00026278,4]
[366730221,1750421476274,-433.02,0.00026278,4]
[366730222,1750421476284,-490.0,0.00026278,4]
[366730223,1750421476294,-784.53,0.00026278,4]
[366730224,1750421476304,-490.0,0.00026286,4]
[366730225,1750421476313,-490.0,0.00026286,4]
[366730226,1750421476323,-616.25,0.00026286,4]